Cogmind - Beta 9.6 @@@ ROGUE MODE // 2020.06.09 @ 08:16:20 Player: Ari Result: Destroyed by D-53 Grenadier with Mini Grenade Launcher Performance ------------- Evolutions (0) 0 Regions Visited (4) 800 Robots Destroyed (40) 200 Value Destroyed (411) 411 Prototype IDs (22) 440 Alien Tech Used (0) 0 Bonus (262) 262 TOTAL SCORE: 2113 Bonus ------- Aligned with FarCom 300 Friendly Fire -38 Cogmind --------- Core Integrity 0/250 Matter 237/300 Energy 89/100 System Corruption 0% Temperature Cool (49) Movement Treading (180) Ox1 Location -9/Mines Parts ------- > --- POWER (1) -------- (None) > --- PROPULSION (2) --- Light Treads Light Treads > --- UTILITY (2) ------ Large Storage Unit Large Storage Unit > --- WEAPON (2) ------- Improved Light Cannon Bore Cannon > --- INVENTORY (16) --- Improved Ion Engine Light Nuclear Core Light Treads Flexi-carbon Leg Flexi-carbon Leg Armored Wheel Armor Integrity Analyzer EM Pulse Gun Improved Light Cannon Hammer Deploy-a-Sentry Deploy-a-Sentry Deploy-a-Sentry Peak State ------------ > --- POWER ------------ (None) > --- PROPULSION ------- Light Treads Light Treads > --- UTILITY ---------- Large Storage Unit Large Storage Unit > --- WEAPON ----------- Improved Light Cannon Bore Cannon > --- INVENTORY -------- Improved Ion Engine Light Nuclear Core Light Treads Flexi-carbon Leg Flexi-carbon Leg Armored Wheel Armor Integrity Analyzer EM Pulse Gun Improved Light Cannon Hammer Deploy-a-Sentry Deploy-a-Sentry Deploy-a-Sentry [Rating: 15] Favorites ----------- Power Ion Engine Engine Ion Engine Propulsion Light Treads Treads Light Treads Wheel Armored Wheel Utility Large Storage Unit Device Weight Redist. System Storage Large Storage Unit Protection Light Armor Plating Weapon Light Assault Rifle Energy Gun Particle Gun Ballistic Gun Light Assault Rifle Ballistic Cannon Improved Light Cannon Launcher Grenade Launcher Impact Weapon Hammer Build | -11 -10 -10 -10 -9 ------- Run | Scr Mat Min Exi Min Slots Evolved . | . . . . . Power . | . . . . . Propulsion . | . . . . . Utility . | . . . . . Weapon . | . . . . . Parts Attached 21 | 6 8 3 . 4 Power 2 | 1 1 . . . Engine 2 | 1 1 . . . Core . | . . . . . Reactor . | . . . . . Propulsion 5 | 2 . 3 . . Treads 4 | 2 . 2 . . Leg . | . . . . . Wheel 1 | . . 1 . . Hover . | . . . . . Flight . | . . . . . Utility 5 | 1 4 . . . Device 1 | . 1 . . . Storage 3 | 1 2 . . . Processor . | . . . . . Hackware . | . . . . . Protection 1 | . 1 . . . Artifact . | . . . . . Weapon 9 | 2 3 . . 4 Energy Gun 2 | 1 1 . . . Energy Cannon . | . . . . . Ballistic Gun 2 | 1 1 . . . Ballistic Cannon 3 | . 1 . . 2 Launcher 1 | . . . . 1 Special Weapon . | . . . . . Impact Weapon 1 | . . . . 1 Slashing Weapon . | . . . . . Piercing Weapon . | . . . . . Special Melee Weapon . | . . . . . Unidentified Prototypes . | . . . . . Parts Lost 7 | . 3 1 . 3 Power 2 | . 1 . . 1 Propulsion 1 | . . 1 . . Utility 1 | . 1 . . . Weapon 3 | . 1 . . 2 Highest Loss Streak 3 | . 1 1 . 3 Average Slot Usage (%) 97 | . 96 100 100 83 Engine 13 | . 13 14 14 1 Treads 28 | . 28 28 28 28 Device 1 | . 3 . . . Storage 20 | . 15 28 28 28 Protection 4 | . 6 . . . Energy Gun 7 | . 4 14 14 1 Ballistic Gun 10 | . 16 . . . Ballistic Cannon 9 | . 7 14 14 12 Naked Turns . | . . . . . Heaviest Build 44 | 12 44 44 44 44 Greatest Support 46 | 40 46 40 40 40 Greatest Overweight (x) 1 | . 1 1 1 1 Average Overweight (x) . | . . 1 1 . Largest Inventory Capacity 16 | 6 16 16 16 16 Average Capacity 11 | 5 8 16 16 16 Most Carried 13 | 6 10 9 11 13 Average Carried 8 | 3 7 8 9 12 Final Capacity 16 | 6 16 16 16 16 Final Carried 13 | 6 9 8 11 13 Class Distribution -------------------- 100% | Mutant Dominant Class ---------------- Mutant | -10/Materials Mutant | -10/Mines Mutant | -10/Exiles Mutant | -9/Mines Resources | -11 -10 -10 -10 -9 ----------- Run | Scr Mat Min Exi Min Matter Collected 533 | 244 169 44 29 47 Remotely . | . . . . . Salvage Created 754 | 63 602 44 . 45 Parts 49 | . 39 9 . 1 Haulers Intercepted 1 | . 1 . . . Recyclers Shooed . | . . . . . Parts Field Recycled . | . . . . . Retrieved Matter . | . . . . . Parts Self-Destructed . | . . . . . Prevented . | . . . . . Kills | -11 -10 -10 -10 -9 ------- Run | Scr Mat Min Exi Min Combat Hostiles Destroyed 33 | . 14 3 . 16 Guns 15 | . 12 3 . . Cannons 3 | . 2 . . 1 AOE 15 | . . . . 15 Classes Destroyed 6 | 1 4 . . 1 Worker 3 | . 1 1 . 1 Hauler 1 | . 1 . . . Recycler 3 | 1 2 . . . Swarmer 9 | . 6 3 . . Grunt 8 | . 8 . . . Assembled 16 | . . . . 16 Best Kill Streak 17 | 1 4 3 . 17 Combat Bots Only 16 | . 3 3 . 16 Max Kills in Single Turn 6 | 1 2 1 . 6 Gunslinging . | . . . . . Exploded 6 | . . . . 6 Melee . | . . . . . Uniques/NPCs Destroyed . | . . . . . Combat | -11 -10 -10 -10 -9 -------- Run | Scr Mat Min Exi Min Damage Taken 1468 | . 744 107 . 617 Core 261 | . 98 . . 163 Absorbed by Shields . | . . . . . Core Remaining (%) 100 | 100 . . . . Volleys Fired 80 | 8 56 5 . 11 Largest 2 | 2 2 2 . 2 Hottest 104 | 70 104 104 . 96 Shots Fired 156 | 16 112 10 . 18 Gun 123 | 16 97 5 . 5 Cannon 29 | . 15 5 . 9 Launcher 4 | . . . . 4 Special . | . . . . . Kinetic 110 | 8 88 5 . 9 Thermal 42 | 8 24 5 . 5 Explosive 4 | . . . . 4 Electromagnetic . | . . . . . Robot Hit Streak 16 | 5 16 2 . 12 Robot Miss Streak 3 | 1 3 2 . 1 Penetration Max . | . . . . . Secondary Targets 1 | . 1 . . . Max Gunslinging Chain 1 | . 1 . . . Shots Hit Robots 104 | 12 75 4 . 13 Core Hits 76 | 2 32 3 . 39 Critical Hits . | . . . . . Critical Kills . | . . . . . Critical Parts Destroyed . | . . . . . Melee Attacks . | . . . . . Impact . | . . . . . Slashing . | . . . . . Piercing . | . . . . . Sneak Attacks . | . . . . . Combat Hostiles . | . . . . . Follow-up Attacks . | . . . . . Damage Inflicted 2116 | 124 777 78 . 1137 Guns 848 | 124 616 49 . 59 Cannons 278 | . 142 22 . 114 Explosions 964 | . . . . 964 Melee . | . . . . . Ramming 26 | . 19 7 . . Kinetic 746 | 38 572 22 . 114 Thermal 380 | 86 186 49 . 59 Explosive 964 | . . . . 964 Electromagnetic . | . . . . . Impact . | . . . . . Slashing . | . . . . . Piercing . | . . . . . Highest Corruption . | . . . . . Average Corruption . | . . . . . Corruption Purged . | . . . . . Overload Shots . | . . . . . Overflow Damage 30 | . . . . 30 Projectiles . | . . . . . Explosions 30 | . . . . 30 Melee . | . . . . . Knockbacks 1 | . . . . 1 Impact . | . . . . . Kinetic 1 | . . . . 1 Secondary . | . . . . . Self-Inflicted Damage 60 | . . . . 60 Shots 3 | . . . . 3 Rammed 6 | . 6 . . . Targets Rammed 8 | . 7 1 . . Kicked . | . . . . . Crushed 2 | . 1 1 . . Highest Temperature 249 | 140 249 130 . 176 Average Temperature 69 | 68 67 59 . 88 Received Heat Transfer 342 | . 282 . . 60 Effects 2 | . 2 . . . Interference 2 | . 2 . . . Siege Activations . | . . . . . Robots Corrupted . | . . . . . Combat Hostiles . | . . . . . Parts Fried . | . . . . . Impact Corruptions . | . . . . . Robots Melted . | . . . . . Combat Hostiles . | . . . . . Parts Melted 2 | 1 1 . . . Heat Transferred 1036 | 259 518 111 . 148 Parts Sabotaged . | . . . . . Parts Stolen . | . . . . . Parts Stripped . | . . . . . Power Chain Reactions . | . . . . . Missiles Intercepted . | . . . . . Alert | -11 -10 -10 -10 -9 ------- Run | Scr Mat Min Exi Min Peak Influence 182 | 5 182 75 . 5 Average Influence 63 | 1 74 63 . . Maximum Alert Level . | . . . . . Low Security (%) 100 | 100 100 100 . 100 Level 1 . | . . . . . Level 2 . | . . . . . Level 3 . | . . . . . Level 4 . | . . . . . Level 5 . | . . . . . High Security . | . . . . . Max Security . | . . . . . Squads Dispatched 2 | . 2 . . . Investigation 1 | . 1 . . . Extermination . | . . . . . Reinforcement 1 | . 1 . . . Assault . | . . . . . Garrison . | . . . . . Intercept . | . . . . . Construction Impeded . | . . . . . Haulers Reinforced . | . . . . . Stealth | -11 -10 -10 -10 -9 --------- Run | Scr Mat Min Exi Min Distress Signals . | . . . . . Communications Jammed . | . . . . . Distress Signals . | . . . . . Times Spotted 54 | . 29 3 . 22 Peak Tracking Total 19 | . 4 3 . 19 Tactical Retreats 1 | . . . . 1 Traps | -11 -10 -10 -10 -9 ------- Run | Scr Mat Min Exi Min Traps Triggered . | . . . . . Indirectly . | . . . . . Trap Hack Attempts . | . . . . . Triggered . | . . . . . Disarmed . | . . . . . Reprogrammed . | . . . . . Reused . | . . . . . Traps Extracted . | . . . . . Installed . | . . . . . Triggered . | . . . . . Machines | -11 -10 -10 -10 -9 ---------- Run | Scr Mat Min Exi Min Machines Disabled . | . . . . . Max in Single Turn . | . . . . . Machines Sabotaged . | . . . . . Garrisons Compromised . | . . . . . Overloaded Fab Kills . | . . . . . Fab Network Shutdowns . | . . . . . Hacking | -11 -10 -10 -10 -9 --------- Run | Scr Mat Min Exi Min Machines Accessed 8 | . 7 . 1 . Terminals 7 | . 7 . . . Fabricators . | . . . . . Repair Stations . | . . . . . Recycling Units . | . . . . . Scanalyzers . | . . . . . Garrison Access . | . . . . . Total Hacks 20 | . 19 . 1 . Successful 10 | . 9 . 1 . Failed 9 | . 9 . . . Catastrophic . | . . . . . Database Lockouts 5 | . 5 . . . Manual 24 | . 23 . 1 . Terminals 19 | . 19 . . . Fabricators . | . . . . . Repair Stations . | . . . . . Recycling Units . | . . . . . Scanalyzers . | . . . . . Garrison Access . | . . . . . Terminal Hacks 3 | . 2 . 1 . Robot Analysis 1 | . 1 . . . Unreport Threat 1 | . 1 . . . EX-Prototype ID Bank 1 | . . . 1 . Fabricator Hacks . | . . . . . Repair Station Hacks . | . . . . . Recycling Unit Hacks . | . . . . . Scanalyzer . | . . . . . Garrison Access Hacks . | . . . . . Unauthorized Hacks 7 | . 7 . . . Terminals 7 | . 7 . . . Botnet 7 | . 7 . . . Fabricators . | . . . . . Repair Stations . | . . . . . Recycling Units . | . . . . . Scanalyzers . | . . . . . Garrison Access . | . . . . . Data Cores Recovered . | . . . . . Used . | . . . . . Hacking Detections 7 | . 7 . . . Full Trace Events . | . . . . . Feedback Events . | . . . . . Feedback Blocked . | . . . . . Robot Schematics Acquired . | . . . . . Robots Built . | . . . . . Matter . | . . . . . Time . | . . . . . Total Robot Build Rating . | . . . . . Part Schematics Acquired . | . . . . . Parts Built . | . . . . . Matter . | . . . . . Time . | . . . . . Total Part Build Rating . | . . . . . Parts Repaired . | . . . . . Time . | . . . . . Parts Recycled . | . . . . . Recycled Matter . | . . . . . Retrieved Matter . | . . . . . Retrieved Components . | . . . . . Parts Scanalyzed . | . . . . . Part Schematics Acquired . | . . . . . Parts Damaged . | . . . . . Bothacking | -11 -10 -10 -10 -9 ------------ Run | Scr Mat Min Exi Min Used RIF Installer . | . . . . . Robots Hacked . | . . . . . Non-combat . | . . . . . Combat . | . . . . . Robot Hacks Applied . | . . . . . Relay Couplers Released . | . . . . . Robots Rewired . | . . . . . Allies Hacked . | . . . . . Hacks Repelled . | . . . . . Allies | -11 -10 -10 -10 -9 -------- Run | Scr Mat Min Exi Min Total Allies . | . . . . . Largest Group . | . . . . . Highest-Rated Group . | . . . . . Highest-Rated Ally . | . . . . . Total Orders . | . . . . . Ally Attacks . | . . . . . Total Damage . | . . . . . Kills . | . . . . . Allies Corrupted . | . . . . . Allies Melted . | . . . . . Intel | -11 -10 -10 -10 -9 ------- Run | Scr Mat Min Exi Min Robot Analysis Total 1 | . 1 . . . Derelict Logs Recovered 1 | . . 1 . . Drone Launches . | . . . . . Drone Recoveries . | . . . . . Exploration | -11 -10 -10 -10 -9 ------------- Run | Scr Mat Min Exi Min Turns Passed 2505 | 149 1442 223 578 113 Spaces Moved 1323 | 77 765 113 320 48 Core 12 | 12 . . . . Treads 1311 | 65 765 113 320 48 Legs . | . . . . . Wheels . | . . . . . Hover . | . . . . . Flight . | . . . . . Fastest Speed 50 | 50 160 180 180 160 Average Speed 166 | 142 162 180 180 160 Slowest Speed 180 | 160 180 180 180 180 Overloaded Moves . | . . . . . Propulsion Burnouts . | . . . . . Robots Hopped . | . . . . . Cave-ins Triggered . | . . . . . Exploration Rate (%) 37 | 6 90 17 63 9 Regions Visited 4 Branch Regions 3 Pre-discovered Areas . | . . . . . Known Exits Taken . | . . . . . Unknown Exits Taken 4 | 1 1 1 1 . Scrap Searched . | . . . . . Spaces Dug . | . . . . . Terrain Destroyed 31 | . . . . 31 Melee . | . . . . . Projectile 4 | . . . . 4 AOE 27 | . . . . 27 Actions | -11 -10 -10 -10 -9 --------- Run | Scr Mat Min Exi Min Total 1486 | 102 874 121 322 67 Wait 12 | . 12 . . . Move 1319 | 76 764 112 319 48 Hop . | . . . . . Pick Up 35 | 12 16 . 3 4 Fast Attach 1 | . 1 . . . Attach 15 | 6 6 1 . 2 Detach . | . . . . . Swap 5 | . 1 2 . 2 Drop 11 | . 11 . . . Fire 80 | 8 56 5 . 11 Melee . | . . . . . Ram . | . . . . . Kick . | . . . . . Crush 8 | . 7 1 . . Escape Stasis . | . . . . . Rewire . | . . . . . Trap . | . . . . . Miscellaneous . | . . . . . Route ------- -11/Scrapyard -10/Materials (discovered 4 exits: *Mat x3 / [*Min]) -10/Mines (discovered 2 exits: Mat / *Exi) -10/Exiles -9/Mines History --------- Turn | Location | Event 19 | -11/Scrapyard | Discovered new exit (range 16) 150 | -11/Scrapyard | Entered Materials 310 | -10/Materials | Build established: Mutant 540 | -10/Materials | Central database locked down 609 | -10/Materials | Discovered new exit (range 5) 835 | -10/Materials | Discovered new exit (range 16) 1151 | -10/Materials | Discovered new exit (range 16) 1276 | -10/Materials | Discovered new exit (range 16) 1592 | -10/Materials | Entered Mines 1651 | -10/Mines | Identified exit to Materials 1802 | -10/Mines | Deemed a non-threat by the Exiles lab entrance 1804 | -10/Mines | Discovered new exit (range 5) 1815 | -10/Mines | Entered Exiles 1878 | -10/Exiles | Met 8R-AWN 1920 | -10/Exiles | Met EX-HEX 1997 | -10/Exiles | Met EX-BIN 2031 | -10/Exiles | Aligned with FarCom system 2033 | -10/Exiles | Given EX-Vault access code 2094 | -10/Exiles | Opened EX-Vault 2112 | -10/Exiles | Found Deploy-a-Sentry 2115 | -10/Exiles | Found Deploy-a-Sentry 2118 | -10/Exiles | Found Deploy-a-Sentry 2157 | -10/Exiles | Warned to stay clear of 0b10 Research branches 2220 | -10/Exiles | Met EX-DEC 2358 | -10/Exiles | Discovered new exit (range 14) 2393 | -10/Exiles | Left Exiles lab with Deploy-a-Sentry 2393 | -10/Exiles | Entered Mines 2394 | -9/Mines | Assembled infested the area 2399 | -9/Mines | Assisted by a Guerilla fighting off Assembled 2400 | -9/Mines | Core integrity fell below 50% 2436 | -9/Mines | Destroyed 16 combat bots 2440 | -9/Mines | Lost 3 parts (1p2w) 2456 | -9/Mines | Met a Derelict bent on vengeance 2503 | -9/Mines | Core integrity fell below 20% 2506 | -9/Mines | Destroyed by D-53 Grenadier with Mini Grenade Launcher Last Messages --------------- 02404_ 1 Matter crushed. 02406_ as-49857 destroyed. 02406_ as-68289 destroyed. 02406_ Destroyed Asb. Hover Unit. 02407_ Grenade Launcher destroyed. 02408_ The unstable cave ceiling collapses. 02409_ Particle Gun destroyed. 02413_ as-73649 knocked back. 02415_ as-73649 destroyed. 02417_ Acquired 44 matter. 02420_ Acquired Flexi-carbon Leg. 02428_ Acquired Bore Cannon. 02433_ Acquired Armor Integrity Analyzer. 02434_ The unstable cave ceiling collapses. 02438_ Acquired 3 matter. 02442_ The unstable cave ceiling collapses. 02496_ C-30 ARC bursts open, deploying its payload. 02496_ D-53 Grenadier unfolds itself. 02498_ The unstable cave ceiling collapses. 02499_ HV Slug penetrates Wall. Map ----- +----------------------------------------------------+ | ???????????????????????????????? | | ???????????????????????????????? | | ???????????????????????????????? | | ???????????????????????????????? | | ???????????????????????????????? | | ???????????????????????????????? | | ???????????????????????????????? | | ???????????????????????????????? | | ???????????????????????????????? | | ?????????????????????Y????Y????? | | ???????????????????????????????? | | ????????????????????#???+###???? | | ???????????? ?????## ?? ###?? | | ???????????? ???#; ?? ;#?? | | ???????????? ### ### #?? | | ?????????????? #?? | | ???????????????? #?? | | ??????????????????? #?? | | ?????????????????????# #?? | | ??????????????????????; #?? | | ??????????????????????# #?? | | ?????????########????## d ##?? | | ?????????# ##??## d #?? | | ?????????# #??# ##? | | ?????????# #??# #? | | ????????## ##??# @ #? | | ????????## #???# #? | | ????????# # # ##### #? | | ????????# ##? | | ????????# # ####### # ##?? | | ????????# #?????#######??? | | ????????# " # #??????????????? | | ????????# #??????????????? | | ????????# ####??????????????? | | ????????# #?????????????????? | | ????????## ##?????????????????? | | ?????????## ???????????????????? | | ??????????# ???????????????????? | | ??????????# ???????????????????? | | ?????????? ???????????????????? | | ??????????##???????????????????? | | ???????????????????????????????? | | ???????????????????????????????? | | ???????????????????????????????? | | ???????????????????????????????? | | ???????????????????????????????? | | ???????????????????????????????? | | ???????????????????????????????? | | ???????????????????????????????? | | ???????????????????????????????? | +----------------------------------------------------+ Best States ------------- Heat Dissipation 25 Energy Generation 10 Energy Capacity 250 Matter Stores 300 Matter Capacity 300 Sight Range 16 Terrain Scan Density 10 Additional Mass Support 6 Armor Coverage 150 Evasion (%) 40 Recoil Reduction 2 Item Schematics ----------------- None Robot Schematics ------------------ None Fabricated ------------ Nothing Alien Tech Used ----------------- None Achievements -------------- None Challenges ------------ None Game ------ Seed IntegratedTargetingStorage Manual? 0 Play Time 00:14:22 Cumulative 24.6 hours Start 2020.06.09 @ 08:02:48 End 2020.06.09 @ 08:16:20 Sessions 1 Manual Loads 0 Difficulty Rogue Special Mode None Game No. 58 Rogue 56 Adventurer 2 Explorer 0 Win Type - Total 0 Types 0/0/0/0/0/0/0 Lore% 32 Gallery% 37 Achievement% 28 Wizard Run 0 Options --------- ASCII 0 Keyboard 0 Movement Arrows Keybinds 0 Fullscreen 1 Font 18/SmallcapsGlow Map View 76x50 Tactical HUD 1 Map Filters NONE Filters NONE Steam 1 RUN: 17de7eed-de56-4d51-bc9c-bd1e8f33ae65